[Event "Czech Open-E Teams 2022"]
[Site "Pardubice"]
[Date "2022.07.17"]
[Round "6.6"]
[White "Mica, Marek"]
[Black "Kostka, Vit"]
[Result "1/2-1/2"]
[ECO "E06"]
[WhiteElo "2304"]
[BlackElo "2168"]
[Annotator "ChessBase"]
[PlyCount "111"]
[EventDate "2022.07.14"]
[EventType "team-tourn"]
[EventCountry "CZE"]
[SourceTitle "playchess.com"]
[Source "ChessBase"]
[SourceQuality "1"]
[TimeControl "5400+30"]

1. d4 {[%emt 0:00:04]} d5 {[%emt 0:00:17]} 2. c4 {[%emt 0:00:11]} e6 {[%emt 0:00:33]} 3. Nf3 {[%emt 0:00:28]} Nf6 {[%emt 0:00:36]} 4. g3 {[%emt 0:00:54]} Be7 {[%emt 0:00:31]} 5. Bg2 {[%emt 0:00:09]} O-O {[%emt 0:00:16]} 6. O-O {[%emt 0:00:10]} dxc4 {[%emt 0:00:10]} 7. Qc2 {[%emt 0:00:20]} a6 {[%emt 0:00:19]} 8. a4 {[%emt 0:00:14]} Bd7 {[%emt 0:00:56]} 9. Qxc4 {[%emt 0:04:02]} Bc6 {[%emt 0:00:18]} 10. Bf4 {[%emt 0:00:26]} Nbd7 {[%emt 0:01:49]} 11. Nc3 {[%emt 0:02:32]} Nb6 {[%emt 0:03:02]} 12. Qb3 {[%emt 0:02:31]} Nbd5 {[%emt 0:04:09]} 13. Bd2 {[%emt 0:02:02]} Nxc3 {[%emt 0:08:01]} 14. bxc3 {[%emt 0:00:22]} b5 {[%emt 0:15:06]} 15. axb5 {[%emt 0:03:00]} axb5 {[%emt 0:01:58]} 16. Bf4 {[%emt 0:06:53]} Bd6 {[%emt 0:05:17]} 17. Bg5 {[%emt 0:01:23]} Qd7 {[%emt 0:07:29]} 18. Bxf6 {[%emt 0:04:59]} gxf6 {[%emt 0:00:57]} 19. Qc2 {[%emt 0:01:11]} Ra4 {[%emt 0:08:55]} 20. e4 {[%emt 0:07:48]} Rfa8 {[%emt 0:01:54]} 21. Rae1 {[%emt 0:04:25]} Ra2 {[%emt 0:04:29]} 22. Qc1 {[%emt 0:00:51]} Bf8 {[%emt 0:03:24]} 23. Qf4 {[%emt 0:02:47]} Bg7 {[%emt 0:01:43]} 24. d5 {[%emt 0:08:34]} Bb7 {[%emt 0:03:00]} 25. Bh3 {[%emt 0:02:52]} Qe7 {[%emt 0:01:54]} 26. Qg4 {[%emt 0:04:20]} Bc8 {[%emt 0:02:47]} 27. dxe6 {[%emt 0:03:38]} fxe6 {[%emt 0:02:21]} 28. Qh5 {[%emt 0:01:02]} c5 {[%emt 0:02:07]} 29. Rb1 {[%emt 0:02:34]} Bd7 {[%emt 0:00:38]} 30. Qh4 {[%emt 0:02:41]} R8a4 {[%emt 0:02:43]} 31. Qf4 {[%emt 0:01:09]} f5 {[%emt 0:01:51]} 32. Qb8+ {[%emt 0:01:24]} Qf8 {[%emt 0:00:16]} 33. Qxf8+ {[%emt 0:05:34]} Kxf8 {[%emt 0:00:20]} 34. exf5 {[%emt 0:00:05]} exf5 {[%emt 0:00:28]} 35. Rfd1 {[%emt 0:01:45]} Ra7 {[%emt 0:02:33]} 36. Rd5 {[%emt 0:02:16]} Bxc3 {[%emt 0:02:20]} 37. Rxc5 {[%emt 0:01:12]} b4 {[%emt 0:01:09]} 38. Bxf5 {[%emt 0:01:00]} Ra1 {[%emt 0:02:44]} 39. Rxa1 {[%emt 0:00:30]} Rxa1+ {[%emt 0:00:04]} 40. Kg2 {[%emt 0:00:21]} Bxf5 {[%emt 0:00:20]} 41. Rxf5+ {[%emt 0:00:08]} Ke7 {[%emt 0:00:10]} 42. Rb5 {[%emt 0:03:28]} Kd6 {[%emt 0:00:35]} 43. Ne5 {[%emt 0:06:04]} Bxe5 {[%emt 0:01:08]} 44. Rxb4 {[%emt 0:00:06]} Ra2 {[%emt 0:03:24]} 45. Rb7 {[%emt 0:02:13]} Bd4 {[%emt 0:00:23]} 46. Rf7 {[%emt 0:00:53]} Ke6 {[%emt 0:00:25]} 47. Rf4 {[%emt 0:00:10]} Be5 {[%emt 0:01:40]} 48. Rf3 {[%emt 0:00:22]} Bd4 {[%emt 0:00:40]} 49. h4 {[%emt 0:00:55]} h5 {[%emt 0:00:40]} 50. Rf4 {[%emt 0:00:29]} Ke5 {[%emt 0:00:44]} 51. Rf8 {[%emt 0:00:19]} Ke4 {[%emt 0:01:09]} 52. Rf4+ {[%emt 0:00:42]} Ke5 {[%emt 0:00:27]} 53. Rf7 {[%emt 0:00:24]} Ke4 {[%emt 0:00:23]} 54. Rf8 {[%emt 0:03:18]} Rb2 {[%emt 0:00:25]} 55. Rf4+ {[%emt 0:00:49]} Ke5 {[%emt 0:00:30]} 56. Rf8 {[%emt 0:01:51]} 1/2-1/2

[Event "Czech Open-E Teams 2022"]
[Site "Pardubice"]
[Date "2022.07.17"]
[Round "6.7"]
[White "Lojek, Marek"]
[Black "Frank, Adam"]
[Result "1-0"]
[ECO "B07"]
[WhiteElo "2142"]
[BlackElo "2313"]
[Annotator "ChessBase"]
[PlyCount "91"]
[EventDate "2022.07.14"]
[EventType "team-tourn"]
[EventCountry "CZE"]
[SourceTitle "playchess.com"]
[Source "ChessBase"]
[SourceQuality "1"]
[TimeControl "5400+30"]

1. e4 {[%emt 0:01:14]} d6 {[%emt 0:00:08]} 2. d4 {[%emt 0:00:30]} Nf6 {[%emt 0:00:38]} 3. Nc3 {[%emt 0:00:00]} g6 {[%emt 0:01:40]} 4. Bc4 {[%emt 0:00:00]} Bg7 {[%emt 0:00:47]} 5. Nf3 {[%emt 0:00:01]} O-O {[%emt 0:00:58]} 6. O-O {[%emt 0:02:34]} c6 {[%emt 0:05:38]} 7. e5 Ng4 {[%emt 0:03:06]} 8. Bf4 {[%emt 0:11:14]} b5 {[%emt 0:19:48]} 9. Bb3 {[%emt 0:09:27]} a5 {[%emt 0:03:02]} 10. a4 {[%emt 0:01:48]} b4 11. Ne4 dxe5 {[%emt 0:14:56]} 12. dxe5 {[%emt 0:00:52]} Qc7 {[%emt 0:00:03]} 13. Re1 {[%emt 0:10:45]} Nxe5 {[%emt 0:05:24]} 14. Neg5 {[%emt 0:11:48]} Nxf3+ {[%emt 0:08:26]} 15. Qxf3 {[%emt 0:00:06]} e5 {[%emt 0:00:02]} 16. Be3 {[%emt 0:05:55]} Qe7 {[%emt 0:05:23]} 17. Rad1 {[%emt 0:05:39]} Bf5 {[%emt 0:01:54]} 18. Nxf7 {[%emt 0:05:34]} Be6 {[%emt 0:02:23]} 19. Bxe6 {[%emt 0:00:58]} Qxe6 {[%emt 0:00:04]} 20. Ng5 {[%emt 0:00:48]} Qf5 {[%emt 0:06:11]} 21. Qe2 {[%emt 0:03:11]} h6 {[%emt 0:05:02]} 22. Qc4+ {[%emt 0:02:49]} Kh8 {[%emt 0:00:03]} 23. Ne6 {[%emt 0:02:11]} Qf7 {[%emt 0:00:06]} 24. Qg4 {[%emt 0:01:34]} Re8 {[%emt 0:05:41]} 25. Nxg7 {[%emt 0:01:40]} Qxg7 {[%emt 0:00:05]} 26. Rd6 {[%emt 0:04:37]} Kh7 {[%emt 0:00:04]} 27. h4 {[%emt 0:01:24]} h5 {[%emt 0:01:08]} 28. Qh3 {[%emt 0:00:18]} c5 {[%emt 0:00:32]} 29. Bxc5 {[%emt 0:03:04]} Ra6 {[%emt 0:00:16]} 30. Red1 {[%emt 0:01:26]} Rxd6 {[%emt 0:04:18]} 31. Rxd6 {[%emt 0:00:08]} Qf7 {[%emt 0:00:55]} 32. Qd3 {[%emt 0:02:44]} Rc8 {[%emt 0:03:21]} 33. Ba7 {[%emt 0:01:43]} Qf5 {[%emt 0:00:44]} 34. Qd5 {[%emt 0:03:59]} Rf8 {[%emt 0:03:46]} 35. Qb7+ {[%emt 0:02:05]} Kh8 {[%emt 0:00:04]} 36. Qc7 {[%emt 0:01:13]} Qc8 {[%emt 0:00:50]} 37. Bxb8 {[%emt 0:01:11]} Qxb8 {[%emt 0:00:05]} 38. Qe7 {[%emt 0:00:32]} Qe8 {[%emt 0:00:16]} 39. Qxe8 {[%emt 0:01:03]} Rxe8 {[%emt 0:00:03]} 40. Rxg6 {[%emt 0:00:05]} Rc8 {[%emt 0:01:57]} 41. Rg5 {[%emt 0:00:16]} Rxc2 {[%emt 0:00:35]} 42. Rxh5+ {[%emt 0:00:05]} Kg7 {[%emt 0:00:02]} 43. Rxe5 {[%emt 0:00:18]} Rxb2 {[%emt 0:00:06]} 44. Rxa5 {[%emt 0:00:08]} Ra2 {[%emt 0:00:03]} 45. Ra6 {[%emt 0:01:25]} b3 {[%emt 0:00:05]} 46. Rb6 {[%emt 0:00:10]} 1-0

[Event "Czech Open-E Teams 2022"]
[Site "Pardubice"]
[Date "2022.07.17"]
[Round "6.8"]
[White "Gnojek, Petr"]
[Black "Husek, Martin"]
[Result "0-1"]
[ECO "E32"]
[WhiteElo "2295"]
[BlackElo "2132"]
[Annotator "ChessBase"]
[PlyCount "154"]
[EventDate "2022.07.14"]
[EventType "team-tourn"]
[EventCountry "CZE"]
[SourceTitle "playchess.com"]
[Source "ChessBase"]
[SourceQuality "1"]
[TimeControl "5400+30"]

1. d4 {[%emt 0:00:03]} Nf6 {[%emt 0:16:01]} 2. c4 {[%emt 0:00:17]} e6 {[%emt 0:01:52]} 3. Nc3 {[%emt 0:00:27]} Bb4 {[%emt 0:00:06]} 4. Qc2 {[%emt 0:00:11]} O-O {[%emt 0:00:06]} 5. a3 {[%emt 0:00:12]} Bxc3+ {[%emt 0:00:06]} 6. Qxc3 {[%emt 0:00:05]} d6 {[%emt 0:00:07]} 7. Bg5 {[%emt 0:06:10]} Nbd7 {[%emt 0:00:13]} 8. e3 {[%emt 0:01:50]} b6 {[%emt 0:00:17]} 9. Bd3 {[%emt 0:00:44]} Bb7 {[%emt 0:00:09]} 10. f3 {[%emt 0:00:05]} h6 {[%emt 0:01:11]} 11. Bh4 {[%emt 0:10:17]} e5 {[%emt 0:00:14]} 12. Ne2 {[%emt 0:03:28]} e4 {[%emt 0:04:55]} 13. fxe4 {[%emt 0:05:24]} Qe8 {[%emt 0:05:27]} 14. e5 {[%emt 0:04:53]} dxe5 {[%emt 0:07:11]} 15. d5 {[%emt 0:00:08]} c6 {[%emt 0:05:12]} 16. dxc6 {[%emt 0:00:26]} Bxc6 {[%emt 0:00:18]} 17. O-O {[%emt 0:00:09]} Ne4 {[%emt 0:06:17]} 18. Bxe4 {[%emt 0:09:24]} Bxe4 {[%emt 0:00:14]} 19. Ng3 {[%emt 0:05:09]} Bh7 {[%emt 0:00:44]} 20. Nf5 {[%emt 0:09:03]} Bxf5 {[%emt 0:06:23]} 21. Rxf5 {[%emt 0:00:06]} Qe6 {[%emt 0:00:23]} 22. e4 {[%emt 0:10:53]} Rac8 {[%emt 0:00:15]} 23. b3 {[%emt 0:00:04]} b5 {[%emt 0:00:27]} 24. Rc1 {[%emt 0:00:06]} f6 {[%emt 0:10:08]} 25. Bf2 {[%emt 0:00:28]} bxc4 {[%emt 0:00:27]} 26. bxc4 {[%emt 0:00:06]} Rc6 {[%emt 0:00:35]} 27. Rf3 {[%emt 0:02:39]} Rfc8 {[%emt 0:01:04]} 28. Qb3 {[%emt 0:01:49]} Nb6 {[%emt 0:12:40]} 29. c5 {[%emt 0:06:22]} Qxb3 {[%emt 0:04:15]} 30. Rxb3 {[%emt 0:00:07]} Nd7 {[%emt 0:00:23]} 31. Kf1 {[%emt 0:00:07]} Nf8 {[%emt 0:01:40]} 32. g3 {[%emt 0:05:08]} Ne6 {[%emt 0:02:45]} 33. Ke2 {[%emt 0:01:20]} Nxc5 {[%emt 0:00:27]} 34. Rb4 {[%emt 0:01:44]} a5 {[%emt 0:01:01]} 35. Bxc5 {[%emt 0:05:03]} axb4 {[%emt 0:02:53]} 36. axb4 {[%emt 0:00:04]} Rd6 {[%emt 0:01:24]} 37. Ra1 {[%emt 0:00:31]} Rd7 {[%emt 0:00:06]} 38. Ra6 {[%emt 0:03:03]} Kf7 {[%emt 0:00:47]} 39. Ra3 {[%emt 0:03:28]} Rcd8 {[%emt 0:02:02]} 40. b5 {[%emt 0:03:08]} Rd2+ {[%emt 0:00:19]} 41. Ke3 {[%emt 0:00:04]} Rb2 {[%emt 0:00:22]} 42. b6 {[%emt 0:00:05]} Rc8 {[%emt 0:03:00]} 43. Ra5 {[%emt 0:00:30]} Rb3+ {[%emt 0:02:51]} 44. Kd2 {[%emt 0:00:16]} Ke6 {[%emt 0:00:18]} 45. g4 {[%emt 0:01:34]} Kd7 {[%emt 0:01:27]} 46. Ra7+ {[%emt 0:00:44]} Kc6 {[%emt 0:00:09]} 47. Be3 {[%emt 0:00:07]} Rd8+ {[%emt 0:00:17]} 48. Ke2 {[%emt 0:00:06]} Rb2+ {[%emt 0:01:28]} 49. Kf3 {[%emt 0:00:05]} Rd3 {[%emt 0:00:36]} 50. Rc7+ {[%emt 0:00:26]} Kd6 {[%emt 0:00:07]} 51. Rc8 {[%emt 0:00:07]} Kd7 {[%emt 0:00:55]} 52. Rc7+ {[%emt 0:00:37]} Kd8 {[%emt 0:00:25]} 53. Rxg7 {[%emt 0:00:14]} Rbb3 {[%emt 0:00:50]} 54. Kf2 {[%emt 0:00:07]} Rxe3 {[%emt 0:00:31]} 55. Rg8+ {[%emt 0:00:04]} Kd7 {[%emt 0:00:06]} 56. b7 {[%emt 0:00:02]} Rxe4 {[%emt 0:00:11]} 57. b8=Q {[%emt 0:00:05]} Rxb8 {[%emt 0:00:05]} 58. Rxb8 {[%emt 0:00:04]} Rxg4 {[%emt 0:00:08]} 59. Rh8 {[%emt 0:00:10]} Rg6 {[%emt 0:01:17]} 60. h4 {[%emt 0:00:20]} f5 {[%emt 0:00:05]} 61. h5 {[%emt 0:00:43]} Rd6 {[%emt 0:00:14]} 62. Rh7+ {[%emt 0:00:10]} Kc6 {[%emt 0:00:08]} 63. Rf7 {[%emt 0:01:47]} f4 {[%emt 0:00:09]} 64. Kf3 {[%emt 0:01:30]} Kd5 {[%emt 0:00:05]} 65. Kg4 {[%emt 0:03:01]} Ke4 {[%emt 0:00:21]} 66. Rg7 {[%emt 0:00:09]} f3 {[%emt 0:00:16]} 67. Rf7 {[%emt 0:00:17]} Rd1 {[%emt 0:00:18]} 68. Rxf3 {[%emt 0:02:36]} Rg1+ {[%emt 0:00:10]} 69. Rg3 {[%emt 0:00:03]} Rxg3+ {[%emt 0:00:08]} 70. Kxg3 {[%emt 0:00:02]} Ke3 {[%emt 0:00:08]} 71. Kg4 {[%emt 0:00:04]} e4 {[%emt 0:00:22]} 72. Kf5 {[%emt 0:00:03]} Kf3 {[%emt 0:00:11]} 73. Kg6 {[%emt 0:00:04]} e3 {[%emt 0:00:06]} 74. Kxh6 {[%emt 0:00:03]} e2 {[%emt 0:00:07]} 75. Kg7 {[%emt 0:00:06]} e1=Q {[%emt 0:00:07]} 76. h6 {[%emt 0:00:03]} Qe7+ {[%emt 0:00:13]} 77. Kg8 {[%emt 0:00:06]} Qg5+ {[%emt 0:00:28]} 0-1

[Event "Czech Open-E Teams 2022"]
[Site "Pardubice"]
[Date "2022.07.17"]
[Round "6.9"]
[White "Cerveny, Martin"]
[Black "Vavra, Pavel"]
[Result "1/2-1/2"]
[ECO "A40"]
[WhiteElo "2396"]
[BlackElo "2317"]
[Annotator "ChessBase"]
[PlyCount "54"]
[EventDate "2022.07.14"]
[EventType "team-tourn"]
[EventCountry "CZE"]
[SourceTitle "playchess.com"]
[Source "ChessBase"]
[SourceQuality "1"]
[TimeControl "5400+30"]

1. d4 {[%emt 0:00:14]} e6 {[%emt 0:00:11]} 2. c4 {[%emt 0:00:21]} b6 {[%emt 0:01:33]} 3. Nf3 {[%emt 0:01:22]} Bb7 {[%emt 0:07:31]} 4. g3 {[%emt 0:00:09]} Bb4+ {[%emt 0:01:30]} 5. Bd2 {[%emt 0:00:34]} Bxf3 {[%emt 0:00:17]} 6. exf3 Bxd2+ 7. Nxd2 {[%emt 0:00:31]} Ne7 {[%emt 0:02:34]} 8. Bg2 {[%emt 0:12:17]} Nbc6 {[%emt 0:04:22]} 9. f4 {[%emt 0:00:44]} d5 {[%emt 0:00:21]} 10. cxd5 Nxd5 {[%emt 0:11:26]} 11. Rc1 {[%emt 0:03:07]} Nce7 {[%emt 0:05:52]} 12. O-O {[%emt 0:00:12]} O-O {[%emt 0:00:06]} 13. Nf3 {[%emt 0:00:45]} Qd6 {[%emt 0:04:44]} 14. Rc4 {[%emt 0:02:51]} Rac8 {[%emt 0:04:22]} 15. Qc2 {[%emt 0:02:24]} c6 {[%emt 0:16:18]} 16. Rc1 {[%emt 0:00:16]} Rc7 {[%emt 0:02:05]} 17. a3 {[%emt 0:00:12]} h6 {[%emt 0:01:40]} 18. b4 {[%emt 0:00:24]} Rfc8 {[%emt 0:02:07]} 19. h4 {[%emt 0:04:30]} b5 {[%emt 0:04:37]} 20. Rc5 {[%emt 0:00:05]} Nb6 {[%emt 0:00:03]} 21. Qe2 {[%emt 0:12:21]} Nd7 {[%emt 0:08:30]} 22. R5c2 {[%emt 0:01:28]} Nf5 {[%emt 0:02:21]} 23. Qd1 {[%emt 0:07:58]} Nf6 {[%emt 0:01:52]} 24. Ne5 {[%emt 0:01:31]} Qxd4 {[%emt 0:02:41]} 25. Rd2 {[%emt 0:04:02]} Qb6 {[%emt 0:00:11]} 26. Rd8+ {[%emt 0:00:18]} Kh7 {[%emt 0:00:44]} 27. h5 {[%emt 0:02:19]} Nxg3 {[%emt 0:02:09]} 1/2-1/2

[Event "Czech Open-E Teams 2022"]
[Site "Pardubice"]
[Date "2022.07.17"]
[Round "6.10"]
[White "Bartos, Jan"]
[Black "Szotkowski, Jakub"]
[Result "0-1"]
[ECO "A46"]
[WhiteElo "2142"]
[BlackElo "2344"]
[Annotator "ChessBase"]
[PlyCount "94"]
[EventDate "2022.07.14"]
[EventType "team-tourn"]
[EventCountry "CZE"]
[SourceTitle "playchess.com"]
[Source "ChessBase"]
[SourceQuality "1"]
[TimeControl "5400+30"]

1. d4 {[%emt 0:00:13]} Nf6 {[%emt 0:01:04]} 2. Nf3 {[%emt 0:00:07]} c5 {[%emt 0:01:03]} 3. e3 {[%emt 0:00:19]} e6 {[%emt 0:02:01]} 4. dxc5 {[%emt 0:00:38]} Bxc5 {[%emt 0:02:05]} 5. c4 {[%emt 0:00:27]} O-O {[%emt 0:01:06]} 6. a3 {[%emt 0:00:12]} Qa5+ {[%emt 0:05:36]} 7. Qd2 {[%emt 0:07:42]} Qxd2+ {[%emt 0:02:57]} 8. Nbxd2 {[%emt 0:01:30]} b6 {[%emt 0:02:16]} 9. Be2 {[%emt 0:02:04]} Bb7 {[%emt 0:00:17]} 10. O-O {[%emt 0:00:08]} Be7 {[%emt 0:05:37]} 11. b3 {[%emt 0:01:39]} Na6 {[%emt 0:05:57]} 12. Bb2 {[%emt 0:02:55]} Nc5 {[%emt 0:00:20]} 13. Rac1 {[%emt 0:02:45]} Rac8 {[%emt 0:03:44]} 14. b4 {[%emt 0:02:35]} Nce4 {[%emt 0:00:39]} 15. Nxe4 {[%emt 0:02:19]} Nxe4 {[%emt 0:00:12]} 16. Rfd1 {[%emt 0:00:24]} Rfd8 {[%emt 0:01:32]} 17. Nd2 {[%emt 0:04:54]} Bf6 {[%emt 0:13:57]} 18. Bxf6 {[%emt 0:00:17]} Nxf6 {[%emt 0:00:04]} 19. Nb3 {[%emt 0:02:34]} Kf8 {[%emt 0:08:33]} 20. Nd4 {[%emt 0:05:08]} Ke7 {[%emt 0:06:01]} 21. Nb5 {[%emt 0:02:48]} a5 {[%emt 0:00:42]} 22. Nd6 {[%emt 0:03:26]} Rb8 {[%emt 0:00:19]} 23. Nxb7 {[%emt 0:04:46]} Rxb7 {[%emt 0:00:21]} 24. Rb1 {[%emt 0:00:38]} Rdb8 {[%emt 0:11:01]} 25. Bf3 {[%emt 0:07:35]} Ra7 {[%emt 0:01:11]} 26. c5 {[%emt 0:00:51]} axb4 {[%emt 0:04:26]} 27. Rxb4 {[%emt 0:00:35]} Rxa3 {[%emt 0:03:49]} 28. cxb6 {[%emt 0:00:12]} d5 {[%emt 0:00:24]} 29. g3 {[%emt 0:02:06]} Rb7 {[%emt 0:03:18]} 30. Rc1 {[%emt 0:01:49]} Ra6 {[%emt 0:01:31]} 31. Rc7+ {[%emt 0:01:19]} Rxc7 {[%emt 0:00:06]} 32. bxc7 {[%emt 0:00:05]} Rc6 {[%emt 0:00:06]} 33. Rb7 {[%emt 0:00:16]} Nd7 {[%emt 0:00:14]} 34. Be2 {[%emt 0:05:15]} Kd6 {[%emt 0:00:44]} 35. Rb8 {[%emt 0:00:09]} Rxc7 {[%emt 0:00:29]} 36. Rh8 {[%emt 0:03:13]} Nf6 {[%emt 0:00:14]} 37. h4 {[%emt 0:00:50]} e5 {[%emt 0:01:19]} 38. g4 {[%emt 0:00:13]} h6 {[%emt 0:00:15]} 39. g5 {[%emt 0:01:03]} hxg5 {[%emt 0:00:02]} 40. hxg5 {[%emt 0:00:06]} Ne4 {[%emt 0:00:27]} 41. g6 {[%emt 0:01:32]} f5 {[%emt 0:05:18]} 42. Bd3 {[%emt 0:00:34]} Ke7 {[%emt 0:00:36]} 43. Bxe4 {[%emt 0:01:32]} dxe4 {[%emt 0:01:10]} 44. Rh3 {[%emt 0:02:39]} Kf6 {[%emt 0:00:28]} 45. Rg3 {[%emt 0:00:36]} f4 {[%emt 0:02:41]} 46. Rg2 {[%emt 0:00:24]} Rc1+ {[%emt 0:01:22]} 47. Kh2 {[%emt 0:00:06]} Rc2 {[%emt 0:00:06]} 0-1

[Event "Czech Open-E Teams 2022"]
[Site "Pardubice"]
[Date "2022.07.17"]
[Round "6.11"]
[White "Chytilek, Roman"]
[Black "Pokorny, Petr"]
[Result "1/2-1/2"]
[ECO "A06"]
[WhiteElo "2317"]
[BlackElo "2139"]
[Annotator "ChessBase"]
[PlyCount "35"]
[EventDate "2022.07.14"]
[EventType "team-tourn"]
[EventCountry "CZE"]
[SourceTitle "playchess.com"]
[Source "ChessBase"]
[SourceQuality "1"]
[TimeControl "5400+30"]

1. Nf3 {[%emt 0:00:15]} d5 {[%emt 0:01:00]} 2. e3 {[%emt 0:00:16]} c6 {[%emt 0:01:21]} 3. c4 {[%emt 0:00:20]} e6 {[%emt 0:02:07]} 4. b3 {[%emt 0:01:05]} Nf6 {[%emt 0:02:12]} 5. Nc3 {[%emt 0:01:58]} Bd6 {[%emt 0:00:14]} 6. d4 {[%emt 0:07:32]} O-O {[%emt 0:00:58]} 7. Be2 {[%emt 0:00:23]} b6 {[%emt 0:04:50]} 8. O-O {[%emt 0:00:34]} Nbd7 {[%emt 0:00:37]} 9. Bb2 {[%emt 0:02:46]} Bb7 {[%emt 0:00:11]} 10. Bd3 {[%emt 0:03:32]} Qe7 {[%emt 0:09:41]} 11. Qe2 {[%emt 0:07:39]} Rac8 {[%emt 0:06:59]} 12. a4 {[%emt 0:12:37]} a5 {[%emt 0:03:02]} 13. Rad1 {[%emt 0:06:14]} Rfd8 {[%emt 0:00:34]} 14. h3 {[%emt 0:01:30]} h6 {[%emt 0:02:26]} 15. Rc1 {[%emt 0:13:03]} Ba3 {[%emt 0:03:35]} 16. cxd5 {[%emt 0:05:24]} Nxd5 {[%emt 0:03:21]} 17. Nxd5 {[%emt 0:03:49]} cxd5 {[%emt 0:00:08]} 18. Bb5 {[%emt 0:02:21]} 1/2-1/2

[Event "Czech Open-E Teams 2022"]
[Site "Pardubice"]
[Date "2022.07.17"]
[Round "6.12"]
[White "Hruska, Jan"]
[Black "Vyskocil, Neklan"]
[Result "0-1"]
[ECO "A28"]
[WhiteElo "2145"]
[BlackElo "2286"]
[Annotator "ChessBase"]
[PlyCount "94"]
[EventDate "2022.07.14"]
[EventType "team-tourn"]
[EventCountry "CZE"]
[SourceTitle "playchess.com"]
[Source "ChessBase"]
[SourceQuality "1"]
[TimeControl "5400+30"]

1. c4 {[%emt 0:00:03]} Nf6 {[%emt 0:11:22]} 2. Nc3 {[%emt 0:00:07]} e5 {[%emt 0:00:30]} 3. Nf3 {[%emt 0:01:21]} Nc6 {[%emt 0:00:12]} 4. d3 {[%emt 0:01:26]} Bb4 {[%emt 0:01:18]} 5. Bd2 {[%emt 0:00:45]} O-O {[%emt 0:00:28]} 6. g3 {[%emt 0:01:10]} Re8 {[%emt 0:01:37]} 7. e4 {[%emt 0:06:42]} d6 {[%emt 0:01:53]} 8. Nd5 {[%emt 0:01:43]} Bxd2+ {[%emt 0:00:41]} 9. Qxd2 {[%emt 0:01:23]} Bg4 {[%emt 0:00:37]} 10. Be2 {[%emt 0:11:06]} Bxf3 {[%emt 0:02:56]} 11. Bxf3 {[%emt 0:00:10]} Nxd5 {[%emt 0:01:22]} 12. cxd5 {[%emt 0:00:24]} Nd4 {[%emt 0:00:06]} 13. Bg2 {[%emt 0:01:01]} c6 {[%emt 0:01:15]} 14. dxc6 {[%emt 0:00:15]} bxc6 {[%emt 0:00:05]} 15. O-O {[%emt 0:00:34]} Qb6 {[%emt 0:01:30]} 16. h4 {[%emt 0:03:31]} Rab8 {[%emt 0:02:02]} 17. b3 {[%emt 0:01:34]} Qb4 {[%emt 0:05:51]} 18. Rad1 {[%emt 0:03:32]} Qxd2 {[%emt 0:05:49]} 19. Rxd2 {[%emt 0:00:04]} a5 {[%emt 0:01:34]} 20. f4 {[%emt 0:01:11]} Rb4 {[%emt 0:00:51]} 21. fxe5 {[%emt 0:03:17]} Rxe5 {[%emt 0:00:24]} 22. Rdf2 {[%emt 0:01:44]} f6 {[%emt 0:00:16]} 23. Rc1 {[%emt 0:00:19]} Kf7 {[%emt 0:12:57]} 24. Bf3 {[%emt 0:04:35]} Ke7 {[%emt 0:00:37]} 25. Bd1 {[%emt 0:01:53]} Kd7 {[%emt 0:00:45]} 26. Rc4 {[%emt 0:08:02]} Kc7 {[%emt 0:03:43]} 27. a3 {[%emt 0:06:53]} Rxc4 {[%emt 0:01:24]} 28. bxc4 {[%emt 0:00:02]} f5 {[%emt 0:06:31]} 29. Bf3 Kb6 {[%emt 0:05:45]} 30. Bg2 {[%emt 0:19:07]} Kc5 {[%emt 0:00:50]} 31. Rb2 {[%emt 0:02:03]} h6 {[%emt 0:07:42]} 32. Kf2 {[%emt 0:01:32]} g5 {[%emt 0:00:36]} 33. hxg5 {[%emt 0:01:57]} hxg5 {[%emt 0:00:05]} 34. exf5 {[%emt 0:00:54]} Rxf5+ {[%emt 0:01:17]} 35. Ke3 {[%emt 0:01:13]} Re5+ {[%emt 0:00:20]} 36. Kf2 {[%emt 0:00:15]} a4 {[%emt 0:06:55]} 37. Be4 {[%emt 0:03:04]} Nb3 {[%emt 0:02:04]} 38. Kf3 {[%emt 0:05:46]} Kd4 {[%emt 0:01:55]} 39. Bxc6 {[%emt 0:01:13]} Kc3 {[%emt 0:00:20]} 40. Rh2 {[%emt 0:02:17]} Nd4+ {[%emt 0:00:17]} 41. Kg4 {[%emt 0:00:02]} Nxc6 {[%emt 0:00:25]} 42. Rh6 {[%emt 0:00:23]} Re3 {[%emt 0:04:21]} 43. Rxd6 Ne5+ 44. Kf5 {[%emt 0:01:39]} Nxd3 {[%emt 0:00:46]} 45. g4 {[%emt 0:05:31]} Re5+ {[%emt 0:01:26]} 46. Kf6 {[%emt 0:00:01]} Rc5 {[%emt 0:00:25]} 47. Rd5 {[%emt 0:00:22]} Kxc4 {[%emt 0:00:41]} 0-1